[Event "Titled Tuesday Blitz June 20 Late 2023"]
[White "Mahdavi, Reza"]
[Black "Le, Tuan Minh"]
[WhiteFideId "12595926"]
[BlackFideId "12401153"]
[WhiteElo "2395"]
[BlackElo "2566"]
[Result "0-1"]
[Round "6"]
[TimeControl "180+2"]
[Date "2023.06.20"]
[WhiteClock "0:00:00"]
[BlackClock "0:00:13"]
[Board "12"]

1. e4 {[%clk 0:03:00]}  c5 {[%clk 0:02:59]} 2. Nf3 {[%clk 0:03:01]}  Nf6 {[%clk 0:02:58]} 3. e5 {[%clk 0:02:57]}  Nd5 {[%clk 0:02:58]} 4. Nc3 {[%clk 0:02:58]}  Nxc3 {[%clk 0:02:58]} 5. dxc3 {[%clk 0:02:58]}  Nc6 {[%clk 0:02:58]} 6. Bf4 {[%clk 0:02:58]}  e6 {[%clk 0:02:58]} 7. Qd2 {[%clk 0:02:54]}  h6 {[%clk 0:02:58]} 8. h4 {[%clk 0:02:53]}  Qc7 {[%clk 0:02:57]} 9. O-O-O {[%clk 0:02:50]}  b6 {[%clk 0:02:57]} 10. Rh3 {[%clk 0:02:32]}  Bb7 {[%clk 0:02:57]} 11. Rg3 {[%clk 0:02:33]}  O-O-O {[%clk 0:02:56]} 12. Qe3 {[%clk 0:02:31]}  Ne7 {[%clk 0:02:54]} 13. Qe1 {[%clk 0:02:18]}  Nf5 {[%clk 0:02:25]} 14. Rh3 {[%clk 0:02:04]}  d5 {[%clk 0:02:23]} 15. exd6 {[%clk 0:01:59]}  Bxd6 {[%clk 0:02:23]} 16. Bxd6 {[%clk 0:02:00]}  Rxd6 {[%clk 0:02:19]} 17. Rxd6 {[%clk 0:01:57]}  Nxd6 {[%clk 0:02:18]} 18. Nd2 {[%clk 0:01:57]}  Rd8 {[%clk 0:02:12]} 19. Rg3 {[%clk 0:01:35]}  Nf5 {[%clk 0:02:11]} 20. Rh3 {[%clk 0:01:32]}  h5 {[%clk 0:02:05]} 21. b3 {[%clk 0:01:23]}  Qe7 {[%clk 0:01:50]} 22. g3 {[%clk 0:01:20]}  Qf6 {[%clk 0:01:49]} 23. Kb2 {[%clk 0:01:14]}  Nh6 {[%clk 0:01:41]} 24. Be2 {[%clk 0:01:05]}  Qe5 {[%clk 0:01:34]} 25. Nc4 {[%clk 0:01:02]}  Qf5 {[%clk 0:01:33]} 26. Rh2 {[%clk 0:01:00]}  g6 {[%clk 0:01:18]} 27. Bd3 {[%clk 0:00:53]}  Qf6 {[%clk 0:01:13]} 28. f4 {[%clk 0:00:54]}  Ng4 {[%clk 0:01:00]} 29. Rd2 {[%clk 0:00:54]}  Bd5 {[%clk 0:00:56]} 30. Qe2 {[%clk 0:00:50]}  Bxc4 {[%clk 0:00:53]} 31. Bxc4 {[%clk 0:00:51]}  Rxd2 {[%clk 0:00:53]} 32. Qxd2 {[%clk 0:00:52]}  Qd8 {[%clk 0:00:54]} 33. Qe2 {[%clk 0:00:49]}  Kc7 {[%clk 0:00:50]} 34. a4 {[%clk 0:00:45]}  Qd6 {[%clk 0:00:50]} 35. a5 {[%clk 0:00:45]}  bxa5 {[%clk 0:00:48]} 36. Qe1 {[%clk 0:00:43]}  Nh6 {[%clk 0:00:43]} 37. Qa1 {[%clk 0:00:42]}  Kb6 {[%clk 0:00:42]} 38. Bd3 {[%clk 0:00:41]}  Ng4 {[%clk 0:00:40]} 39. Qa4 {[%clk 0:00:41]}  Qc6 {[%clk 0:00:40]} 40. Qc4 {[%clk 0:00:42]}  Kc7 {[%clk 0:00:38]} 41. Be4 {[%clk 0:00:38]}  Qb6 {[%clk 0:00:36]} 42. Qa4 {[%clk 0:00:36]}  Nf6 {[%clk 0:00:36]} 43. Bf3 {[%clk 0:00:36]}  Kd6 {[%clk 0:00:36]} 44. Qc4 {[%clk 0:00:29]}  Ke7 {[%clk 0:00:36]} 45. Qe2 {[%clk 0:00:28]}  a4 {[%clk 0:00:36]} 46. Qe5 {[%clk 0:00:24]}  axb3 {[%clk 0:00:35]} 47. cxb3 {[%clk 0:00:25]}  Ne8 {[%clk 0:00:33]} 48. f5 {[%clk 0:00:23]}  Qd6 {[%clk 0:00:26]} 49. Qe1 {[%clk 0:00:24]}  Ng7 {[%clk 0:00:20]} 50. fxg6 {[%clk 0:00:23]}  fxg6 {[%clk 0:00:21]} 51. Be4 {[%clk 0:00:23]}  Qe5 {[%clk 0:00:21]} 52. Qe3 {[%clk 0:00:17]}  a5 {[%clk 0:00:21]} 53. Qd3 {[%clk 0:00:16]}  Nf5 {[%clk 0:00:21]} 54. Bxf5 {[%clk 0:00:16]}  gxf5 {[%clk 0:00:21]} 55. Qf3 {[%clk 0:00:16]}  Kd6 {[%clk 0:00:19]} 56. Qd1+ {[%clk 0:00:16]}  Kc7 {[%clk 0:00:18]} 57. Qxh5 {[%clk 0:00:16]}  Qxg3 {[%clk 0:00:18]} 58. Qf7+ {[%clk 0:00:17]}  Kd6 {[%clk 0:00:18]} 59. Qf8+ {[%clk 0:00:17]}  Kd7 {[%clk 0:00:08]} 60. Qxc5 {[%clk 0:00:14]}  Qh2+ {[%clk 0:00:04]} 61. Kb1 {[%clk 0:00:12]}  Qh1+ {[%clk 0:00:04]} 62. Kb2 {[%clk 0:00:12]}  Qh2+ {[%clk 0:00:05]} 63. Kb1 {[%clk 0:00:12]}  f4 {[%clk 0:00:06]} 64. Qd4+ {[%clk 0:00:11]}  Ke7 {[%clk 0:00:06]} 65. Qg7+ {[%clk 0:00:12]}  Kd6 {[%clk 0:00:07]} 66. Qd4+ {[%clk 0:00:13]}  Kc6 {[%clk 0:00:07]} 67. Qc4+ {[%clk 0:00:13]}  Kd7 {[%clk 0:00:08]} 68. Qd4+ {[%clk 0:00:14]}  Ke8 {[%clk 0:00:08]} 69. Qh8+ {[%clk 0:00:13]}  Ke7 {[%clk 0:00:09]} 70. Qg7+ {[%clk 0:00:14]}  Kd6 {[%clk 0:00:10]} 71. Qd4+ {[%clk 0:00:14]}  Kc6 {[%clk 0:00:10]} 72. Qc4+ {[%clk 0:00:15]}  Kb6 {[%clk 0:00:11]} 73. Qxe6+ {[%clk 0:00:15]}  Kc7 {[%clk 0:00:12]} 74. Qe5+ {[%clk 0:00:14]}  Kd7 {[%clk 0:00:12]} 75. h5 {[%clk 0:00:14]}  Qg1+ {[%clk 0:00:10]} 76. Kb2 {[%clk 0:00:14]}  Qg2+ {[%clk 0:00:09]} 77. Ka3 {[%clk 0:00:13]}  f3 {[%clk 0:00:10]} 78. Qd5+ {[%clk 0:00:12]}  Ke7 {[%clk 0:00:10]} 79. h6 {[%clk 0:00:12]}  Qh1 {[%clk 0:00:10]} 80. Qe4+ {[%clk 0:00:11]}  Kf7 {[%clk 0:00:10]} 81. Ka4 {[%clk 0:00:10]}  Qg2 {[%clk 0:00:05]} 82. Qf5+ {[%clk 0:00:07]}  Kg8 {[%clk 0:00:06]} 83. h7+ {[%clk 0:00:04]}  Kh8 {[%clk 0:00:06]} 84. Kxa5 {[%clk 0:00:04]}  f2 {[%clk 0:00:06]} 85. Qf8+ {[%clk 0:00:04]}  Kxh7 {[%clk 0:00:07]} 86. Qf7+ {[%clk 0:00:05]}  Kh6 {[%clk 0:00:07]} 87. Qf6+ {[%clk 0:00:04]}  Kh5 {[%clk 0:00:08]} 88. Qf7+ {[%clk 0:00:05]}  Kh4 {[%clk 0:00:08]} 89. Qh7+ {[%clk 0:00:04]}  Kg3 {[%clk 0:00:09]} 90. Qg6+ {[%clk 0:00:04]}  Kh2 {[%clk 0:00:09]} 91. Qh5+ {[%clk 0:00:04]}  Kg1 {[%clk 0:00:09]} 92. Qc5 {[%clk 0:00:05]}  Qa8+ {[%clk 0:00:09]} 93. Kb4 {[%clk 0:00:05]}  Qb8+ {[%clk 0:00:09]} 94. Ka3 {[%clk 0:00:06]}  Qf4 {[%clk 0:00:09]} 95. b4 {[%clk 0:00:05]}  Kg2 {[%clk 0:00:09]} 96. Qd5+ {[%clk 0:00:05]}  Qf3 {[%clk 0:00:10]} 97. Qg5+ {[%clk 0:00:05]}  Kh2 {[%clk 0:00:10]} 98. Qh4+ {[%clk 0:00:05]}  Kg2 {[%clk 0:00:10]} 99. Qg5+ {[%clk 0:00:05]}  Qg3 {[%clk 0:00:11]} 100. Qd5+ {[%clk 0:00:05]}  Kh2 {[%clk 0:00:11]} 101. Qd2 {[%clk 0:00:05]}  Kh1 {[%clk 0:00:08]} 102. Qh6+ {[%clk 0:00:05]}  Kg1 {[%clk 0:00:09]} 103. Qb6 {[%clk 0:00:04]}  Qxc3+ {[%clk 0:00:09]} 104. Ka4 {[%clk 0:00:04]}  Qc2+ {[%clk 0:00:10]} 105. Ka5 {[%clk 0:00:03]}  Qa2+ {[%clk 0:00:10]} 106. Kb5 {[%clk 0:00:04]}  Qd5+ {[%clk 0:00:11]} 107. Ka4 {[%clk 0:00:04]}  Kg2 {[%clk 0:00:11]} 108. Qg6+ {[%clk 0:00:04]}  Kf3 {[%clk 0:00:12]} 109. Qf6+ {[%clk 0:00:04]}  Ke3 {[%clk 0:00:12]} 110. Qc3+ {[%clk 0:00:03]}  Qd3 {[%clk 0:00:12]} 111. Qe5+ {[%clk 0:00:03]}  Kf3 {[%clk 0:00:13]} 112. Qf6+ {[%clk 0:00:04]}  Ke2 {[%clk 0:00:13]} 113. Qe5+ {[%clk 0:00:04]}  Kd1 {[%clk 0:00:13]} 114. Qa1+ {[%clk 0:00:03]}  Kd2 {[%clk 0:00:14]} 115. Qf6 {[%clk 0:00:00]}  f1=Q {[%clk 0:00:13]} 0-1


[Site "https://www.chess.com"]

[Event "Titled Tuesday Blitz June 20 Late 2023"]
[White "Rasulov, Vugar"]
[Black "Cuenca Jimenez, Jose Fernando"]
[WhiteFideId "13402390"]
[BlackFideId "2255570"]
[WhiteElo "2509"]
[BlackElo "2418"]
[Result "1-0"]
[Round "6"]
[TimeControl "180+2"]
[Date "2023.06.20"]
[WhiteClock "0:00:28"]
[BlackClock "0:00:00"]
[Board "14"]

1. e4 {[%clk 0:03:00]}  d6 {[%clk 0:03:00]} 2. d4 {[%clk 0:03:00]}  Nf6 {[%clk 0:03:00]} 3. f3 {[%clk 0:03:01]}  e5 {[%clk 0:03:00]} 4. d5 {[%clk 0:03:00]}  Be7 {[%clk 0:02:58]} 5. c4 {[%clk 0:03:01]}  O-O {[%clk 0:02:53]} 6. Nc3 {[%clk 0:03:01]}  a5 {[%clk 0:02:46]} 7. Be3 {[%clk 0:03:02]}  Nfd7 {[%clk 0:02:40]} 8. Qd2 {[%clk 0:03:01]}  h6 {[%clk 0:02:40]} 9. Bd3 {[%clk 0:02:56]}  Bg5 {[%clk 0:02:40]} 10. Nge2 {[%clk 0:02:57]}  Bxe3 {[%clk 0:02:37]} 11. Qxe3 {[%clk 0:02:56]}  Na6 {[%clk 0:02:36]} 12. O-O {[%clk 0:02:55]}  Ndc5 {[%clk 0:02:36]} 13. Rad1 {[%clk 0:02:50]}  Qg5 {[%clk 0:02:35]} 14. Qf2 {[%clk 0:02:48]}  Bd7 {[%clk 0:02:28]} 15. Bb1 {[%clk 0:02:48]}  a4 {[%clk 0:02:25]} 16. a3 {[%clk 0:02:45]}  Rab8 {[%clk 0:02:19]} 17. f4 {[%clk 0:02:34]}  exf4 {[%clk 0:02:19]} 18. Nxf4 {[%clk 0:02:35]}  Qe5 {[%clk 0:02:08]} 19. h3 {[%clk 0:02:29]}  b5 {[%clk 0:02:07]} 20. cxb5 {[%clk 0:02:29]}  Bxb5 {[%clk 0:02:08]} 21. Nxb5 {[%clk 0:02:29]}  Rxb5 {[%clk 0:02:07]} 22. Ng6 {[%clk 0:02:30]}  fxg6 {[%clk 0:01:48]} 23. Qxf8+ {[%clk 0:02:29]}  Kh7 {[%clk 0:01:49]} 24. Rd2 {[%clk 0:02:11]}  Rb8 {[%clk 0:00:41]} 25. Qf2 {[%clk 0:02:09]}  Nb3 {[%clk 0:00:38]} 26. Rd3 {[%clk 0:01:52]}  Nac5 {[%clk 0:00:36]} 27. Rc3 {[%clk 0:01:52]}  Nd4 {[%clk 0:00:33]} 28. Kh1 {[%clk 0:01:46]}  h5 {[%clk 0:00:24]} 29. Rc4 {[%clk 0:01:39]}  Ndb3 {[%clk 0:00:21]} 30. Rb4 {[%clk 0:01:35]}  Re8 {[%clk 0:00:21]} 31. Bc2 {[%clk 0:01:30]}  Re7 {[%clk 0:00:16]} 32. Rb8 {[%clk 0:01:28]}  Re8 {[%clk 0:00:14]} 33. Rxe8 {[%clk 0:01:28]}  Qxe8 {[%clk 0:00:15]} 34. Qe3 {[%clk 0:01:19]}  Qe5 {[%clk 0:00:14]} 35. Qf2 {[%clk 0:00:56]}  Qxb2 {[%clk 0:00:12]} 36. e5 {[%clk 0:00:54]}  Qxe5 {[%clk 0:00:11]} 37. Re1 {[%clk 0:00:40]}  Qg5 {[%clk 0:00:10]} 38. Re8 {[%clk 0:00:33]}  Qf6 {[%clk 0:00:00]} 39. Qe2 {[%clk 0:00:28]} 1-0


[Site "https://www.chess.com"]

[Event "Titled Tuesday Blitz June 20 Late 2023"]
[White "Volkov, Maksim"]
[Black "Mikaelyan, Arman"]
[WhiteFideId "54123070"]
[BlackFideId "13304852"]
[WhiteElo "2295"]
[BlackElo "2456"]
[Result "1-0"]
[Round "6"]
[TimeControl "180+2"]
[Date "2023.06.20"]
[WhiteClock "0:00:07"]
[BlackClock "0:00:04"]
[Board "15"]

1. d4 {[%clk 0:03:00]}  d5 {[%clk 0:02:59]} 2. c4 {[%clk 0:03:01]}  c6 {[%clk 0:02:59]} 3. Nf3 {[%clk 0:03:01]}  Nf6 {[%clk 0:02:59]} 4. g3 {[%clk 0:03:01]}  g6 {[%clk 0:02:54]} 5. Bg2 {[%clk 0:02:59]}  dxc4 {[%clk 0:02:52]} 6. Na3 {[%clk 0:02:55]}  Bg7 {[%clk 0:02:30]} 7. Nxc4 {[%clk 0:02:54]}  O-O {[%clk 0:02:31]} 8. O-O {[%clk 0:02:54]}  Be6 {[%clk 0:02:26]} 9. b3 {[%clk 0:02:49]}  Nbd7 {[%clk 0:02:25]} 10. Bb2 {[%clk 0:02:45]}  Nb6 {[%clk 0:02:22]} 11. Nce5 {[%clk 0:02:33]}  a5 {[%clk 0:02:21]} 12. Nd3 {[%clk 0:02:23]}  Qc7 {[%clk 0:02:08]} 13. Nd2 {[%clk 0:02:09]}  Rfd8 {[%clk 0:02:05]} 14. Nc5 {[%clk 0:02:07]}  Bg4 {[%clk 0:02:02]} 15. h3 {[%clk 0:02:05]}  Bc8 {[%clk 0:02:03]} 16. Rc1 {[%clk 0:02:03]}  a4 {[%clk 0:01:58]} 17. bxa4 {[%clk 0:02:02]}  Nfd7 {[%clk 0:01:58]} 18. Nde4 {[%clk 0:01:54]}  Nxc5 {[%clk 0:01:52]} 19. Nxc5 {[%clk 0:01:54]}  e5 {[%clk 0:01:52]} 20. e3 {[%clk 0:01:52]}  exd4 {[%clk 0:01:50]} 21. Bxd4 {[%clk 0:01:51]}  Bf5 {[%clk 0:01:25]} 22. g4 {[%clk 0:01:32]}  Bc8 {[%clk 0:01:23]} 23. Re1 {[%clk 0:01:18]}  Qd6 {[%clk 0:01:09]} 24. Bxg7 {[%clk 0:00:55]}  Kxg7 {[%clk 0:01:10]} 25. Qb3 {[%clk 0:00:52]}  Qc7 {[%clk 0:00:55]} 26. Qb2+ {[%clk 0:00:41]}  Kg8 {[%clk 0:00:55]} 27. Ne4 {[%clk 0:00:35]}  Nd5 {[%clk 0:00:47]} 28. Red1 {[%clk 0:00:34]}  Be6 {[%clk 0:00:44]} 29. Rxd5 {[%clk 0:00:33]}  Bxd5 {[%clk 0:00:39]} 30. Nf6+ {[%clk 0:00:34]}  Kf8 {[%clk 0:00:32]} 31. Nxd5 {[%clk 0:00:29]}  Rxd5 {[%clk 0:00:32]} 32. Bxd5 {[%clk 0:00:29]}  Rxa4 {[%clk 0:00:30]} 33. Qh8+ {[%clk 0:00:19]}  Ke7 {[%clk 0:00:31]} 34. Qxh7 {[%clk 0:00:19]}  Kf6 {[%clk 0:00:29]} 35. Qh8+ {[%clk 0:00:19]}  Ke7 {[%clk 0:00:24]} 36. Bxf7 {[%clk 0:00:18]}  Qd6 {[%clk 0:00:16]} 37. Bb3 {[%clk 0:00:15]}  Re4 {[%clk 0:00:15]} 38. Qg7+ {[%clk 0:00:14]}  Ke8 {[%clk 0:00:14]} 39. Bf7+ {[%clk 0:00:11]}  Kd8 {[%clk 0:00:13]} 40. Qxg6 {[%clk 0:00:12]}  Qe7 {[%clk 0:00:09]} 41. Rd1+ {[%clk 0:00:10]}  Kc7 {[%clk 0:00:10]} 42. Bb3 {[%clk 0:00:09]}  Re5 {[%clk 0:00:08]} 43. Qd3 {[%clk 0:00:08]}  b5 {[%clk 0:00:04]} 44. Kg2 {[%clk 0:00:08]}  Kb6 {[%clk 0:00:03]} 45. Qd8+ {[%clk 0:00:07]}  Qxd8 {[%clk 0:00:03]} 46. Rxd8 {[%clk 0:00:08]}  c5 {[%clk 0:00:04]} 47. Rd6+ {[%clk 0:00:06]}  Ka5 {[%clk 0:00:04]} 48. Rd5 {[%clk 0:00:07]}  Re4 {[%clk 0:00:03]} 49. Rxc5 {[%clk 0:00:07]}  Kb4 {[%clk 0:00:04]} 50. Rf5 {[%clk 0:00:07]}  Re8 {[%clk 0:00:05]} 51. g5 {[%clk 0:00:07]}  Kc3 {[%clk 0:00:04]} 52. g6 {[%clk 0:00:07]} 1-0


[Site "https://www.chess.com"]

[Event "Titled Tuesday Blitz June 20 Late 2023"]
[White "Salimova, Nurgyul"]
[Black "Eljanov, Pavel"]
[WhiteFideId "2915138"]
[BlackFideId "14102951"]
[WhiteElo "2343"]
[BlackElo "2598"]
[Result "1-0"]
[Round "6"]
[TimeControl "180+2"]
[Date "2023.06.20"]
[WhiteClock "0:00:08"]
[BlackClock "0:00:26"]
[Board "17"]

1. d4 {[%clk 0:03:00]}  d5 {[%clk 0:02:59]} 2. Nf3 {[%clk 0:03:01]}  Nf6 {[%clk 0:02:58]} 3. c4 {[%clk 0:03:00]}  e6 {[%clk 0:02:58]} 4. g3 {[%clk 0:03:00]}  Bb4+ {[%clk 0:02:55]} 5. Bd2 {[%clk 0:03:00]}  Be7 {[%clk 0:02:55]} 6. Bg2 {[%clk 0:02:59]}  O-O {[%clk 0:02:56]} 7. O-O {[%clk 0:02:59]}  Nbd7 {[%clk 0:02:56]} 8. b4 {[%clk 0:02:58]}  Nb6 {[%clk 0:02:40]} 9. c5 {[%clk 0:02:49]}  Nc4 {[%clk 0:02:40]} 10. Bf4 {[%clk 0:02:41]}  a5 {[%clk 0:02:09]} 11. b5 {[%clk 0:02:36]}  Nh5 {[%clk 0:02:09]} 12. Nbd2 {[%clk 0:02:10]}  Nxf4 {[%clk 0:02:03]} 13. gxf4 {[%clk 0:02:10]}  Nxd2 {[%clk 0:02:00]} 14. Qxd2 {[%clk 0:02:09]}  Bd7 {[%clk 0:01:58]} 15. a4 {[%clk 0:02:07]}  f6 {[%clk 0:01:57]} 16. Kh1 {[%clk 0:01:40]}  Be8 {[%clk 0:01:51]} 17. Bh3 {[%clk 0:01:36]}  Qd7 {[%clk 0:01:45]} 18. Qe3 {[%clk 0:01:31]}  Bf7 {[%clk 0:01:45]} 19. Rg1 {[%clk 0:01:30]}  Kh8 {[%clk 0:01:43]} 20. Rg3 {[%clk 0:01:08]}  Rfe8 {[%clk 0:01:43]} 21. Rag1 {[%clk 0:01:04]}  Bf8 {[%clk 0:01:43]} 22. Bg4 {[%clk 0:00:50]}  b6 {[%clk 0:01:38]} 23. c6 {[%clk 0:00:39]}  Qd6 {[%clk 0:01:37]} 24. Rh3 {[%clk 0:00:33]}  g6 {[%clk 0:01:31]} 25. Rhg3 {[%clk 0:00:31]}  Bh6 {[%clk 0:01:26]} 26. Rh3 {[%clk 0:00:20]}  Bxf4 {[%clk 0:01:24]} 27. Qd3 {[%clk 0:00:21]}  f5 {[%clk 0:01:22]} 28. e3 {[%clk 0:00:17]}  e5 {[%clk 0:01:09]} 29. exf4 {[%clk 0:00:14]}  e4 {[%clk 0:01:03]} 30. Ng5 {[%clk 0:00:11]}  Bg8 {[%clk 0:00:56]} 31. Qg3 {[%clk 0:00:10]}  fxg4 {[%clk 0:00:55]} 32. Rxh7+ {[%clk 0:00:10]}  Bxh7 {[%clk 0:00:53]} 33. Nf7+ {[%clk 0:00:11]}  Kg7 {[%clk 0:00:50]} 34. Nxd6 {[%clk 0:00:12]}  cxd6 {[%clk 0:00:50]} 35. f5 {[%clk 0:00:13]}  gxf5 {[%clk 0:00:47]} 36. Qxd6 {[%clk 0:00:13]}  Rad8 {[%clk 0:00:35]} 37. Qc7+ {[%clk 0:00:13]}  Kh8 {[%clk 0:00:35]} 38. Qf4 {[%clk 0:00:10]}  e3 {[%clk 0:00:33]} 39. fxe3 {[%clk 0:00:09]}  Re4 {[%clk 0:00:34]} 40. Qg5 {[%clk 0:00:10]}  Rde8 {[%clk 0:00:31]} 41. c7 {[%clk 0:00:09]}  f4 {[%clk 0:00:26]} 42. Qf6+ {[%clk 0:00:08]} 1-0


[Site "https://www.chess.com"]

[Event "Titled Tuesday Blitz June 20 Late 2023"]
[White "Korchmar, Vasiliy"]
[Black "Sanal, Vahap"]
[WhiteFideId "24131750"]
[BlackFideId "6300545"]
[WhiteElo "2370"]
[BlackElo "2606"]
[Result "1-0"]
[Round "6"]
[TimeControl "180+2"]
[Date "2023.06.20"]
[WhiteClock "0:00:05"]
[BlackClock "0:01:21"]
[Board "19"]

1. e4 {[%clk 0:02:52]}  e5 {[%clk 0:03:00]} 2. Nf3 {[%clk 0:02:51]}  Nc6 {[%clk 0:03:00]} 3. Bc4 {[%clk 0:02:49]}  Bc5 {[%clk 0:03:00]} 4. c3 {[%clk 0:02:49]}  Nf6 {[%clk 0:03:00]} 5. d3 {[%clk 0:02:49]}  d6 {[%clk 0:02:59]} 6. Bg5 {[%clk 0:02:47]}  h6 {[%clk 0:02:59]} 7. Bh4 {[%clk 0:02:47]}  a5 {[%clk 0:03:00]} 8. O-O {[%clk 0:02:45]}  O-O {[%clk 0:02:58]} 9. Nbd2 {[%clk 0:02:43]}  Qe7 {[%clk 0:02:58]} 10. Re1 {[%clk 0:02:42]}  Be6 {[%clk 0:02:59]} 11. Bd5 {[%clk 0:02:42]}  Ba7 {[%clk 0:02:50]} 12. Nf1 {[%clk 0:02:39]}  Nd8 {[%clk 0:02:45]} 13. d4 {[%clk 0:02:29]}  c6 {[%clk 0:02:37]} 14. Bb3 {[%clk 0:02:14]}  Bxb3 {[%clk 0:02:34]} 15. axb3 {[%clk 0:02:15]}  Bb6 {[%clk 0:02:32]} 16. Ne3 {[%clk 0:02:07]}  exd4 {[%clk 0:02:07]} 17. cxd4 {[%clk 0:01:52]}  Qe6 {[%clk 0:02:01]} 18. d5 {[%clk 0:01:46]}  Qxe4 {[%clk 0:01:59]} 19. Bxf6 {[%clk 0:01:45]}  gxf6 {[%clk 0:02:00]} 20. Nc4 {[%clk 0:01:42]}  Bxf2+ {[%clk 0:01:57]} 21. Kxf2 {[%clk 0:01:43]}  Qf5 {[%clk 0:01:54]} 22. Nxd6 {[%clk 0:01:30]}  Qf4 {[%clk 0:01:51]} 23. Ne4 {[%clk 0:01:20]}  cxd5 {[%clk 0:01:50]} 24. Qxd5 {[%clk 0:01:18]}  Ra6 {[%clk 0:01:45]} 25. Qd2 {[%clk 0:01:11]}  Qxd2+ {[%clk 0:01:42]} 26. Nfxd2 {[%clk 0:01:11]}  Kg7 {[%clk 0:01:42]} 27. Nc4 {[%clk 0:01:10]}  Nc6 {[%clk 0:01:42]} 28. Nc5 {[%clk 0:01:04]}  Ra7 {[%clk 0:01:43]} 29. Re3 {[%clk 0:00:57]}  Rd8 {[%clk 0:01:41]} 30. Rd3 {[%clk 0:00:56]}  Rc8 {[%clk 0:01:38]} 31. Rd7 {[%clk 0:00:52]}  b5 {[%clk 0:01:38]} 32. Nb6 {[%clk 0:00:17]}  Rxd7 {[%clk 0:01:33]} 33. Nbxd7 {[%clk 0:00:18]}  Rc7 {[%clk 0:01:29]} 34. Rc1 {[%clk 0:00:12]}  Nd4 {[%clk 0:01:26]} 35. Ke3 {[%clk 0:00:09]}  Nf5+ {[%clk 0:01:27]} 36. Kf4 {[%clk 0:00:07]}  Kg6 {[%clk 0:01:13]} 37. Nf8+ {[%clk 0:00:07]}  Kg7 {[%clk 0:01:13]} 38. Nfe6+ {[%clk 0:00:08]}  fxe6 {[%clk 0:01:14]} 39. Nxe6+ {[%clk 0:00:08]}  Kg6 {[%clk 0:01:15]} 40. Nf8+ {[%clk 0:00:05]}  Kf7 {[%clk 0:01:15]} 41. Rxc7+ {[%clk 0:00:04]}  Ne7 {[%clk 0:01:16]} 42. Ng6 {[%clk 0:00:03]}  Kxg6 {[%clk 0:01:17]} 43. Rxe7 {[%clk 0:00:03]}  a4 {[%clk 0:01:18]} 44. Rb7 {[%clk 0:00:03]}  axb3 {[%clk 0:01:19]} 45. Rxb5 {[%clk 0:00:03]}  f5 {[%clk 0:01:19]} 46. Rxb3 {[%clk 0:00:04]}  Kh5 {[%clk 0:01:20]} 47. Rh3+ {[%clk 0:00:04]}  Kg6 {[%clk 0:01:20]} 48. Rg3+ {[%clk 0:00:05]}  Kh5 {[%clk 0:01:20]} 49. Kxf5 {[%clk 0:00:05]}  Kh4 {[%clk 0:01:21]} 50. Rh3# {[%clk 0:00:05]} 1-0


[Site "https://www.chess.com"]

[Event "Titled Tuesday Blitz June 20 Late 2023"]
[White "Ibarra Jerez, Jose Carlos"]
[Black "Ganiev, Roman"]
[WhiteFideId "2226332"]
[BlackFideId "4131452"]
[WhiteElo "2631"]
[BlackElo "2669"]
[Result "1-0"]
[Round "6"]
[TimeControl "180+2"]
[Date "2023.06.20"]
[WhiteClock "0:00:03"]
[BlackClock "0:00:00"]
[Board "20"]

1. e4 {[%clk 0:03:00]}  c5 {[%clk 0:02:57]} 2. Nf3 {[%clk 0:02:59]}  d6 {[%clk 0:02:54]} 3. c3 {[%clk 0:02:59]}  Nf6 {[%clk 0:02:54]} 4. h3 {[%clk 0:03:00]}  Nc6 {[%clk 0:02:52]} 5. Bd3 {[%clk 0:02:59]}  g6 {[%clk 0:02:52]} 6. Bc2 {[%clk 0:02:59]}  Bg7 {[%clk 0:02:52]} 7. d4 {[%clk 0:03:00]}  cxd4 {[%clk 0:02:51]} 8. cxd4 {[%clk 0:03:00]}  O-O {[%clk 0:02:50]} 9. O-O {[%clk 0:03:01]}  Bd7 {[%clk 0:02:45]} 10. Nc3 {[%clk 0:03:01]}  e5 {[%clk 0:02:38]} 11. d5 {[%clk 0:02:46]}  Ne7 {[%clk 0:02:20]} 12. a4 {[%clk 0:02:45]}  a6 {[%clk 0:02:13]} 13. a5 {[%clk 0:02:41]}  Nh5 {[%clk 0:01:54]} 14. Be3 {[%clk 0:02:40]}  f5 {[%clk 0:01:39]} 15. Bb6 {[%clk 0:02:30]}  Qe8 {[%clk 0:01:27]} 16. Bc7 {[%clk 0:02:29]}  Rf6 {[%clk 0:01:10]} 17. Ng5 {[%clk 0:02:08]}  Rc8 {[%clk 0:01:05]} 18. Bb6 {[%clk 0:02:08]}  Nf4 {[%clk 0:00:44]} 19. g3 {[%clk 0:01:48]}  h6 {[%clk 0:00:33]} 20. gxf4 {[%clk 0:01:48]}  hxg5 {[%clk 0:00:33]} 21. fxg5 {[%clk 0:01:36]}  Rf8 {[%clk 0:00:33]} 22. Kh2 {[%clk 0:01:33]}  fxe4 {[%clk 0:00:27]} 23. Nxe4 {[%clk 0:01:29]}  Nf5 {[%clk 0:00:27]} 24. Bd3 {[%clk 0:01:21]}  Qe7 {[%clk 0:00:22]} 25. Rg1 {[%clk 0:01:18]}  Nh4 {[%clk 0:00:19]} 26. Rg3 {[%clk 0:01:18]}  Nf5 {[%clk 0:00:13]} 27. Rg4 {[%clk 0:01:09]}  Nd4 {[%clk 0:00:12]} 28. Bxd4 {[%clk 0:01:03]}  Bxg4 {[%clk 0:00:12]} 29. Qxg4 {[%clk 0:01:04]}  exd4 {[%clk 0:00:12]} 30. f4 {[%clk 0:00:52]}  Rce8 {[%clk 0:00:11]} 31. Rf1 {[%clk 0:00:48]}  Qf7 {[%clk 0:00:11]} 32. Nxd6 {[%clk 0:00:42]}  Qxd5 {[%clk 0:00:10]} 33. Nxe8 {[%clk 0:00:43]}  Rxe8 {[%clk 0:00:10]} 34. Bxg6 {[%clk 0:00:36]}  Re3 {[%clk 0:00:10]} 35. Rf2 {[%clk 0:00:27]}  d3 {[%clk 0:00:09]} 36. Qc8+ {[%clk 0:00:19]}  Bf8 {[%clk 0:00:09]} 37. Qc7 {[%clk 0:00:16]}  Re7 {[%clk 0:00:07]} 38. Qc3 {[%clk 0:00:10]}  Re3 {[%clk 0:00:08]} 39. Qd2 {[%clk 0:00:06]}  Bc5 {[%clk 0:00:07]} 40. Rg2 {[%clk 0:00:06]}  Qd4 {[%clk 0:00:06]} 41. Qf2 {[%clk 0:00:04]}  d2 {[%clk 0:00:05]} 42. Qh4 {[%clk 0:00:04]}  d1=Q {[%clk 0:00:00]} 43. Qh7+ {[%clk 0:00:03]} 1-0


[Site "https://www.chess.com"]